fUSD/lending_fUSD_20250630
["ID","MTS","AMOUNT","RATE_DAILY","PERIOD"]
[368681865,1751294977357,-490.0,0.00013988,2]
[368681866,1751294977414,-254.05307146,0.00013988,2]
[368681867,1751294977843,-235.94692854,0.00013988,2]
[368681868,1751294977900,-490.0,0.00013988,2]
[368681869,1751294977955,-490.0,0.00013988,2]
[368681870,1751294978011,-751.46,0.00013988,2]
[368681871,1751294978063,-490.0,0.00013988,2]
[368681872,1751294978114,-490.0,0.00013988,2]
[368681873,1751294978164,-992.85,0.00013988,2]
[368681874,1751294978214,-538.21,0.00013988,2]
[368681875,1751294978275,-490.0,0.00013988,2]
[368681876,1751294978323,-565.91398307,0.00013988,2]
[368681877,1751294978371,-490.0,0.00013988,2]
[368681878,1751294978417,-582.68,0.00013988,2]
[368681879,1751294978466,-598.79,0.00013988,2]
[368681880,1751294978516,-2494.63,0.00013988,2]
[368681881,1751294978564,-36.46817678,0.00013988,2]
[368681882,1751294978918,-526.10182322,0.00013988,2]
[368681883,1751294978970,-717.38,0.00013988,2]
[368681884,1751294979022,-1603.93,0.00013988,2]
[368681885,1751294979073,-638.06,0.00013988,2]
[368681886,1751294979120,-490.0,0.00013988,2]
[368681887,1751294979167,-490.0,0.00013988,2]
[368681888,1751294979215,-490.0,0.00013988,2]
[368681889,1751294979261,-567.78,0.00013988,2]
[368681890,1751294979310,-542.67,0.00013988,2]
[368681891,1751294979363,-521.5,0.00013988,2]
[368681892,1751294979419,-490.0,0.00013988,2]
[368681893,1751294979475,-849.39,0.00013988,2]
[368681894,1751294979531,-1650.34,0.00013988,2]
[368681895,1751294979585,-355.69635356,0.00013988,2]
[368681896,1751294979784,-134.30364644,0.00013988,2]
[368681897,1751294979833,-490.0,0.00013988,2]
[368681898,1751294979882,-490.0,0.00013988,2]
[368681899,1751294979932,-490.0,0.00013988,2]
[368681900,1751294979991,-684.19,0.00013988,2]
[368681901,1751294980047,-490.0,0.00013988,2]
[368681902,1751294980105,-490.0,0.00013988,2]
[368681903,1751294980162,-595.26,0.00013988,2]
[368681904,1751294980218,-577.16,0.00013988,2]
[368681905,1751294980275,-966.67,0.00013988,2]
[368681906,1751294980334,-500.0,0.00013988,2]
[368681907,1751294980393,-490.0,0.00013988,2]
[368681908,1751294980452,-490.0,0.00013988,2]
[368681909,1751294980511,-902.98,0.00013988,2]
[368681910,1751294980572,-901.1,0.00013988,2]
[368681911,1751294980629,-490.0,0.00013988,2]
[368681912,1751294980693,-579.73,0.00013988,2]
[368681913,1751294981015,-490.0,0.00013987,2]
[368681914,1751294981076,-606.8,0.00013988,2]
[368681915,1751294981133,-1186.04,0.00013988,2]
[368681916,1751294981189,-490.0,0.00013988,2]
[368681917,1751294981249,-328.12651732,0.00013988,2]
[368681918,1751294981312,-1960.28,0.00013988,2]
[368681919,1751294981376,-490.0,0.00013988,2]
[368681920,1751294982474,-196.25119159,0.00013988,2]
[368681921,1751294982530,-646.58,0.00013988,2]
[368681922,1751294982578,-896.82,0.00013988,2]
[368681923,1751294982622,-490.0,0.00013988,2]
[368681924,1751294982667,-490.0,0.00013988,2]
[368681925,1751294982714,-1271.94,0.00013988,2]
[368681926,1751294982763,-376.0142727,0.00013988,2]
[368681927,1751294983115,-162.29603678,0.00013988,2]
[368681928,1751294983166,-490.0,0.00013988,2]
[368681929,1751294983220,-607.5,0.00013988,2]
[368681930,1751294983277,-576.53,0.00013988,2]
[368681931,1751294983331,-490.0,0.00013988,2]
[368681932,1751294983390,-567.15,0.00013988,2]
[368681933,1751294983446,-863.31,0.00013988,2]
[368681934,1751294983500,-639.49,0.00013988,2]
[368681935,1751294983551,-530.04,0.00013988,2]
[368681936,1751294983606,-4563.62,0.00013988,2]
[368681937,1751294983656,-490.0,0.00013988,2]
[368681938,1751294984032,-1395.03,0.00013988,2]
[368681939,1751294984083,-490.0,0.00013988,2]
[368681940,1751294984133,-490.0,0.00013988,2]
[368681941,1751294984181,-490.0,0.00013988,2]
[368681942,1751294984232,-490.0,0.00013988,2]
[368681943,1751294984279,-776.7,0.00013988,2]
[368681944,1751294984329,-716.43,0.00013988,2]
[368681945,1751294984437,-1484.88,0.00013988,2]
[368681946,1751294984488,-490.0,0.00013988,2]
[368681947,1751294984536,-2282.86,0.00013988,2]
[368681948,1751294984586,-859.9,0.00013988,2]
[368681949,1751294985427,-68.4,0.00013988,2]
[368681950,1751294985472,-661.47,0.00013988,2]
[368681951,1751294985517,-490.0,0.00013988,2]
[368681952,1751294985560,-514.27,0.00013988,2]
[368681953,1751294985606,-490.0,0.00013988,2]
[368681954,1751294985649,-490.0,0.00013988,2]
[368681955,1751294985692,-490.0,0.00013988,2]
[368681956,1751294985740,-672.14,0.00013988,2]
[368681957,1751294985786,-490.0,0.00013988,2]
[368681958,1751294985832,-490.0,0.00013988,2]
[368681959,1751294985877,-490.0,0.00013988,2]
[368681960,1751294985924,-490.0,0.00013988,2]
[368681961,1751294985975,-1141.56,0.00013988,2]
[368681962,1751294986024,-558.45,0.00013988,2]
[368681963,1751294986069,-490.0,0.00013988,2]
[368681964,1751294986116,-784.0,0.00013988,2]
[368681965,1751294986162,-1087.35,0.00013988,2]
[368681966,1751294986579,-204.72,0.00013988,2]
[368681967,1751294986628,-1095.76,0.00013988,2]
[368681968,1751294986677,-919.21,0.00013988,2]
[368681969,1751294986729,-490.0,0.00013988,2]
[368681970,1751294986779,-490.0,0.00013988,2]
[368681971,1751294986831,-5448.35,0.00013988,2]
[368681972,1751294987113,-3222.88,0.00013988,2]
[368681973,1751294987164,-490.0,0.00013988,2]
[368681974,1751294987214,-490.0,0.00013988,2]
[368681975,1751294987262,-490.0,0.00013988,2]
[368681976,1751294987311,-1891.27,0.00013988,2]
[368681977,1751294987360,-490.0,0.00013988,2]
[368681978,1751294987410,-641.35,0.00013988,2]
[368681979,1751294987459,-652.39,0.00013988,2]
[368681980,1751294987507,-1276.13,0.00013988,2]
[368681981,1751294987750,-2630.15,0.00013988,2]
[368681982,1751294987800,-1360.57,0.00013988,2]
[368681983,1751294987847,-490.0,0.00013988,2]
[368681984,1751294987900,-490.0,0.00013988,2]
[368681985,1751294987951,-4847.07,0.00013988,2]
[368681986,1751294988287,-706.4,0.00013988,2]
[368681987,1751294988344,-2658.86,0.00013988,2]
[368681988,1751294988396,-2880.72,0.00013988,2]
[368681989,1751294988443,-490.0,0.00013988,2]
[368681990,1751294988490,-1658.33,0.00013988,2]
[368681991,1751294988538,-490.0,0.00013988,2]
[368681992,1751294989317,-6429.04,0.00013988,2]
[368681993,1751294989370,-1299.13,0.00013988,2]
[368681994,1751294989422,-490.0,0.00013988,2]
[368681995,1751294989471,-490.0,0.00013988,2]
[368681996,1751295011690,-167.67,0.000135,2]
[368681997,1751295011700,-333.63,0.000139,2]
[368681998,1751295011743,-490.0,0.000139,2]
[368681999,1751295011789,-1658.33,0.000139,2]
[368682000,1751295011829,-490.0,0.000139,2]
[368682001,1751295012128,-2231.38,0.000139,2]
[368682002,1751295012323,-6429.04,0.000139,2]
[368682003,1751295012389,-495.09338258,0.000139,2]
[368682004,1751295012404,-804.03661742,0.00013981,2]
[368682005,1751295012449,-490.0,0.00013981,2]
[368682006,1751295012495,-490.0,0.00013981,2]
[368682007,1751295012541,-1864.84268528,0.00013981,2]
[368682008,1751295012551,-490.0,0.00013987,2]
[368682009,1751295012560,-228.81731472,0.00013987,2]
[368682010,1751295031587,-291.44332639,0.00013888,2]
[368682011,1751295031598,-1416.44079042,0.00013889,2]
[368682012,1751295031609,-142.29046196,0.00013889,2]
[368682013,1751295031621,-264.70953804,0.00013889,2]
[368682014,1751295031723,-26.73378833,0.00013889,2]
[368682015,1751295031732,-294.94121167,0.0001389,2]
[368682016,1751295031753,-1263.79004066,0.0001389,2]
[368682017,1751295031763,-291.44332637,0.00013891,2]
[368682018,1751295031773,-1558.73125233,0.00013891,2]
[368682019,1751295031783,-1558.73125233,0.00013893,2]
[368682020,1751295031794,-1558.73125233,0.00013894,2]
[368682021,1751295031804,-1558.73125233,0.00013895,2]
[368682022,1751295031815,-1558.73125233,0.00013896,2]
[368682023,1751295031825,-300.0,0.00013899,2]
[368682024,1751295031835,-1200.0,0.00013899,2]
[368682025,1751295031844,-500.0,0.00013973,2]
[368682026,1751295031854,-24109.01841794,0.00013981,2]
[368682027,1751295031889,-700.0,0.00013981,2]
[368682028,1751295031901,-1706.49592439,0.00013981,2]
[368682029,1751295031913,-1262.99999114,0.00013981,2]
[368682030,1751295031925,-545.44642781,0.00013981,2]
[368682031,1751295031937,-501.84968142,0.00013981,2]
[368682032,1751295031949,-5372.2944,0.00013981,2]
[368682033,1751295031961,-2267.53139975,0.00013981,2]
[368682125,1751295038418,-291.44332637,0.00013892,2]
[368682127,1751295038429,-1016.49304743,0.00013898,2]
[368682129,1751295038442,-419.34094197,0.00013898,2]
[368682132,1751295038453,-122.89726293,0.00013898,2]
[368682134,1751295038462,-5012.95345707,0.00013981,2]
[368682137,1751295038491,-3820.8016329,0.00013981,2]
[368682256,1751295039854,-291.44332637,0.00013893,2]
[368682258,1751295039864,-887.9851677,0.00013899,2]
[368682260,1751295039876,-670.74608463,0.00013899,2]
[368682262,1751295039886,-708.52640141,0.00013981,2]
[368682288,1751295040130,-747.69175583,0.00013981,2]
[368682290,1751295040142,-3337.05617949,0.00013981,2]
[368682526,1751295042616,-18831.44567115,0.00013981,2]
[368682530,1751295042626,-271.38384424,0.00013987,2]
[368682532,1751295042635,-490.0,0.00013987,2]
[368682534,1751295042644,-355.27895291,0.00013987,2]
[368682536,1751295042652,-622.66,0.00013987,2]
[368682538,1751295042661,-490.0,0.00013987,2]
[368682539,1751295042671,-490.0,0.00013987,2]
[368682541,1751295042680,-490.0,0.00013987,2]
[368682543,1751295042689,-490.0,0.00013987,2]
[368682545,1751295042698,-490.0,0.00013987,2]
[368682547,1751295042707,-832.37,0.00013987,2]
[368682548,1751295042717,-323.13247623,0.00013987,2]
[368682594,1751295043212,-166.86752377,0.00013987,2]
[368682596,1751295043221,-490.0,0.00013987,2]
[368682598,1751295043231,-490.0,0.00013987,2]
[368682600,1751295043240,-490.0,0.00013987,2]
[368682602,1751295043249,-490.0,0.00013987,2]
[368682604,1751295043259,-490.0,0.00013987,2]
[368682605,1751295043268,-490.0,0.00013987,2]
[368682607,1751295043278,-490.0,0.00013987,2]
[368682609,1751295043287,-518.2379025,0.00013987,2]
[368682611,1751295043297,-490.0,0.00013987,2]
[368682613,1751295043306,-490.0,0.00013987,2]
[368682615,1751295043315,-490.0,0.00013987,2]
[368682616,1751295043324,-204.12837373,0.00013987,2]
[368682793,1751295045248,-291.44332637,0.00013895,2]
[368682800,1751295045301,-1558.73125233,0.000139,2]
[368682807,1751295045360,-285.87162627,0.00013987,2]
[368682813,1751295045418,-490.0,0.00013987,2]
[368682820,1751295045473,-490.0,0.00013987,2]
[368682832,1751295045524,-1241.22,0.00013987,2]
[368682838,1751295045572,-639.37,0.00013987,2]
[368682844,1751295045622,-490.0,0.00013987,2]
[368682850,1751295045674,-490.0,0.00013987,2]
[368682857,1751295045725,-490.0,0.00013987,2]
[368682864,1751295045783,-490.0,0.00013987,2]
[368682871,1751295045843,-490.0,0.00013987,2]
[368682878,1751295045895,-628.49,0.00013987,2]
[368682884,1751295045952,-490.0,0.00013987,2]
[368682885,1751295046015,-490.0,0.00013987,2]
[368682889,1751295046069,-490.0,0.00013987,2]
[368682895,1751295046120,-419.74759006,0.00013987,2]
[368682912,1751295046376,-70.25240994,0.00013987,2]
[368682918,1751295046432,-1180.53,0.00013987,2]
[368682925,1751295046485,-890.08,0.00013987,2]
[368682931,1751295046535,-490.0,0.00013987,2]
[368682938,1751295046588,-490.0,0.00013987,2]
[368682945,1751295046643,-490.0,0.00013987,2]
[368682951,1751295046697,-528.75,0.00013987,2]
[368682958,1751295046752,-490.0,0.00013987,2]
[368682966,1751295046817,-3856.15518012,0.00013987,2]
[368682981,1751295047067,-681.73515314,0.00013987,2]
[368682982,1751295047078,-2144.142,0.00013987,2]
[368682993,1751295047179,-202.58766674,0.00013987,2]
[368682999,1751295047230,-561.61,0.00013987,2]
[368683004,1751295047282,-490.0,0.00013987,2]
[368683011,1751295047336,-1256.91,0.00013987,2]
[368683017,1751295047395,-1224.21,0.00013987,2]
[368683022,1751295047449,-490.0,0.00013987,2]
[368683023,1751295047505,-490.0,0.00013987,2]
[368683024,1751295047559,-2585.36,0.00013987,2]
[368683025,1751295047609,-634.77,0.00013987,2]
[368683028,1751295047664,-1483.76466652,0.00013987,2]
[368683040,1751295047894,-1161.57533348,0.00013987,2]
[368683041,1751295047949,-3746.15,0.00013988,2]
[368683042,1751295048001,-490.0,0.00013988,2]
[368683043,1751295048056,-543.77,0.00013988,2]
[368683044,1751295048111,-1816.23,0.00013988,2]
[368683045,1751295048167,-1479.64933304,0.00013988,2]
[368683046,1751295049226,-509.76,0.00013987,2]
[368683047,1751295049281,-1525.25066696,0.00013988,2]
[368683048,1751295049337,-599.88,0.00013988,2]
[368683049,1751295049397,-490.0,0.00013988,2]
[368683050,1751295049456,-1288.37,0.00013988,2]
[368683051,1751295049511,-490.0,0.00013988,2]
[368683052,1751295049565,-4809.42,0.00013988,2]
[368683053,1751295049620,-84.63866608,0.00013988,2]
[368683054,1751295049758,-405.36133392,0.00013988,2]
[368683055,1751295049813,-2105.39,0.00013988,2]
[368683056,1751295049868,-490.0,0.00013988,2]
[368683057,1751295049924,-973.31,0.00013988,2]
[368683058,1751295050262,-745.53,0.00013987,2]
[368683059,1751295050313,-4467.6,0.00013988,2]
[368683060,1751295050630,-9573.74,0.00013988,2]
[368683061,1751295050915,-3548.88,0.00013988,2]
[368683062,1751295050971,-1358.65,0.00013988,2]
[368683063,1751295051031,-984.34,0.00013988,2]
[368683064,1751295051083,-490.0,0.00013988,2]
[368683065,1751295051135,-1659.95,0.00013988,2]
[368683066,1751295051196,-490.0,0.00013988,2]
[368683067,1751295051251,-490.0,0.00013988,2]
[368683068,1751295051302,-490.0,0.00013988,2]
[368683069,1751295053851,-291.44332637,0.00013896,2]
[368683070,1751295053909,-490.0,0.00013987,2]
[368683071,1751295053965,-4150.23,0.00013988,2]
[368683072,1751295054025,-490.0,0.00013988,2]
[368683073,1751295054082,-490.0,0.00013988,2]
[368683074,1751295054139,-490.0,0.00013988,2]
[368683075,1751295054194,-2309.21,0.00013988,2]
[368683076,1751295054248,-490.0,0.00013988,2]
[368683077,1751295054304,-490.0,0.00013988,2]
[368683078,1751295054361,-128.23334726,0.00013988,2]
[368683079,1751295054815,-361.76665274,0.00013988,2]
[368683080,1751295054871,-1521.52,0.00013988,2]
[368683081,1751295054925,-2023.27,0.00013988,2]
[368683082,1751295054984,-2251.13,0.00013988,2]
[368683083,1751295055044,-490.0,0.00013988,2]
[368683084,1751295055098,-905.71,0.00013988,2]
[368683085,1751295055153,-526.25,0.00013988,2]
[368683086,1751295055205,-1431.56669452,0.00013988,2]
[368683087,1751295055511,-490.0,0.00013987,2]
[368683088,1751295055564,-977.57330548,0.00013988,2]
[368683089,1751295055618,-2336.18,0.00013988,2]
[368683090,1751295055670,-490.0,0.00013988,2]
[368683091,1751295055725,-548.8,0.00013988,2]
[368683092,1751295055778,-490.0,0.00013988,2]
[368683093,1751295055832,-1795.64,0.00013988,2]
[368683094,1751295055888,-490.0,0.00013988,2]
[368683095,1751295055942,-708.33,0.00013988,2]
[368683096,1751295055997,-995.28338904,0.00013988,2]
[368683097,1751295056244,-1356.38661096,0.00013988,2]
[368683098,1751295056300,-1438.95,0.00013988,2]
[368683099,1751295056356,-1439.61,0.00013988,2]
[368683100,1751295056409,-490.0,0.00013988,2]
[368683101,1751295056465,-501.79,0.00013988,2]
[368683102,1751295056520,-1612.15,0.00013988,2]
[368683103,1751295056578,-490.0,0.00013988,2]
[368683104,1751295056863,-490.0,0.00013987,2]
[368683105,1751295056920,-6472.61,0.00013988,2]
[368683106,1751295056973,-557.68,0.00013988,2]
[368683107,1751295058268,-1210.04,0.00013987,2]
[368683108,1751295058735,-1613.67,0.00013987,2]
[368683109,1751295058961,-755.44,0.00013987,2]
[368683110,1751295061367,-291.44332637,0.00013897,2]
[368683111,1751295061376,-58.31522271,0.00013987,2]
[368683112,1751295061419,-431.68477729,0.00013987,2]
[368683113,1751295061428,-94.56522271,0.00013987,2]
[368683114,1751295061466,-395.43477729,0.00013987,2]
[368683115,1751295061475,-2013.70522271,0.00013988,2]
[368683116,1751295061555,-490.0,0.00013987,2]
[368683117,1751295061597,-977.57330548,0.00013988,2]
[368683118,1751295061654,-2336.18,0.00013988,2]
[368683119,1751295061699,-490.0,0.00013988,2]
[368683120,1751295061745,-548.8,0.00013988,2]
[368683121,1751295061803,-490.0,0.00013988,2]
[368683122,1751295061844,-1795.64,0.00013988,2]
[368683123,1751295061901,-490.0,0.00013988,2]
[368683124,1751295061944,-708.33,0.00013988,2]
[368683125,1751295061997,-2351.67,0.00013988,2]
[368683126,1751295062063,-1356.38661096,0.00013988,2]
[368683127,1751295062160,-1438.95,0.00013988,2]
[368683128,1751295062232,-1439.61,0.00013988,2]
[368683129,1751295062290,-490.0,0.00013988,2]
[368683130,1751295062365,-501.79,0.00013988,2]
[368683131,1751295062458,-1612.15,0.00013988,2]
[368683132,1751295062503,-490.0,0.00013988,2]
[368683133,1751295062559,-4675.29486085,0.00013988,2]
[368683134,1751295062568,-666.93191723,0.00013988,2]
[368683135,1751295062649,-490.0,0.00013987,2]
[368683136,1751295062689,-44.12906142,0.00013987,2]
[368683137,1751295062699,-348.85808277,0.00013988,2]
[368683138,1751295062710,-490.0,0.00013988,2]
[368683139,1751295062720,-916.23,0.00013988,2]
[368683140,1751295062731,-1175.51,0.00013988,2]
[368683141,1751295062742,-490.0,0.00013988,2]
[368683142,1751295062751,-490.0,0.00013988,2]
[368683143,1751295062760,-490.0,0.00013988,2]
[368683144,1751295062770,-490.0,0.00013988,2]
[368683145,1751295062780,-920.21,0.00013988,2]
[368683146,1751295062789,-617.67285581,0.00013988,2]
[368683147,1751295062843,-557.68,0.00013988,2]
[368683148,1751295062887,-130.73714419,0.00013988,2]
[368683149,1751295062899,-1664.17,0.00013988,2]
[368683150,1751295062909,-924.87,0.00013988,2]
[368683151,1751295062918,-2239.64285581,0.00013988,2]
[368683152,1751295062973,-6591.78714419,0.00013988,2]
[368683153,1751295062983,-2211.96,0.00013988,2]
[368683154,1751295062993,-2418.13,0.00013988,2]
[368683155,1751295063002,-3566.16,0.00013988,2]
[368683156,1751295063012,-490.0,0.00013988,2]
[368683157,1751295063022,-817.69,0.00013988,2]
[368683158,1751295063032,-490.0,0.00013988,2]
[368683159,1751295063042,-3414.27285581,0.00013988,2]
[368683160,1751295063185,-20000.0,0.00013988,2]
[368683161,1751295063351,-20000.0,0.00013988,2]
[368683162,1751295063423,-20000.0,0.00013988,2]
[368683163,1751295063499,-1210.04,0.00013988,2]
[368683164,1751295063624,-17579.92,0.00013988,2]
[368683165,1751295063795,-20000.0,0.00013988,2]
[368683166,1751295063848,-20000.0,0.00013988,2]
[368683167,1751295063893,-597.72714419,0.00013988,2]
[368683168,1751295063903,-1500.0,0.00013988,2]
[368683169,1751295063914,-490.0,0.00013988,2]
[368683170,1751295063924,-1243.22,0.00013988,2]
[368683171,1751295063933,-490.0,0.00013988,2]
[368683172,1751295063943,-2243.96,0.00013988,2]
[368683173,1751295063953,-2126.11,0.00013988,2]
[368683174,1751295063962,-498.26,0.00013988,2]
[368683175,1751295063972,-490.0,0.00013988,2]
[368683176,1751295063982,-490.0,0.00013988,2]
[368683177,1751295063992,-895.02,0.00013988,2]
[368683178,1751295064002,-769.69,0.00013988,2]
[368683179,1751295064012,-6865.68,0.00013988,2]
[368683180,1751295064022,-500.0,0.00013988,2]
[368683181,1751295064031,-800.33285581,0.00013988,2]
[368683182,1751295064079,-1548.35714419,0.00013988,2]
[368683183,1751295064091,-3825.46,0.00013988,2]
[368683184,1751295064101,-1979.52,0.00013988,2]
[368683185,1751295064110,-490.0,0.00013988,2]
[368683186,1751295064120,-490.0,0.00013988,2]
[368683187,1751295064130,-490.0,0.00013988,2]
[368683188,1751295064139,-1068.7,0.00013988,2]
[368683189,1751295064150,-1379.12,0.00013988,2]
[368683190,1751295064160,-200.0,0.00013988,2]
[368683191,1751295064170,-3114.76,0.00013988,2]
[368683192,1751295064180,-2554.51,0.00013988,2]
[368683193,1751295064189,-2859.57285581,0.00013988,2]
[368683194,1751295064237,-1108.73714419,0.00013988,2]
[368683195,1751295064247,-490.0,0.00013988,2]
[368683196,1751295064257,-490.0,0.00013988,2]
[368683197,1751295064267,-17911.26285581,0.00013988,2]
[368683198,1751295064331,-2642.01714419,0.00013988,2]
[368683199,1751295064341,-490.0,0.00013988,2]
[368683200,1751295064351,-490.0,0.00013988,2]
[368683201,1751295064364,-490.0,0.00013988,2]
[368683202,1751295064374,-490.0,0.00013988,2]
[368683203,1751295064383,-2057.48,0.00013988,2]
[368683204,1751295064395,-1377.78,0.00013988,2]
[368683205,1751295064406,-490.0,0.00013988,2]
[368683206,1751295064415,-490.0,0.00013988,2]
[368683207,1751295064425,-1604.1,0.00013988,2]
[368683208,1751295064436,-2632.8,0.00013988,2]
[368683209,1751295064446,-1110.16,0.00013988,2]
[368683210,1751295064456,-962.3,0.00013988,2]
[368683211,1751295064466,-490.0,0.00013988,2]
[368683212,1751295064475,-2059.53,0.00013988,2]
[368683213,1751295064486,-2123.83285581,0.00013988,2]
[368683214,1751295064535,-1613.67,0.00013988,2]
[368683215,1751295064605,-537.48714419,0.00013988,2]
[368683216,1751295064614,-3357.96,0.00013988,2]
[368683217,1751295064624,-1208.05,0.00013988,2]
[368683218,1751295064633,-490.0,0.00013989,2]
[368683219,1751295064642,-490.0,0.00013989,2]
[368683220,1751295064654,-490.0,0.00013989,2]
[368683221,1751295064664,-490.0,0.00013989,2]
[368683222,1751295064674,-547.16,0.00013989,2]
[368683223,1751295064683,-490.0,0.00013989,2]
[368683224,1751295064693,-490.0,0.00013989,2]
[368683225,1751295064702,-490.0,0.00013989,2]
[368683226,1751295064712,-490.0,0.00013989,2]
[368683227,1751295064722,-2381.7,0.00013989,2]
[368683228,1751295064731,-490.0,0.00013989,2]
[368683229,1751295064740,-536.08806275,0.00013989,2]
[368683230,1751295064750,-2442.65,0.00013989,2]
[368683231,1751295064760,-1351.56479306,0.00013989,2]
[368683232,1751295064814,-490.0,0.00013987,2]
[368683233,1751295064823,-712.96520694,0.00013989,2]
[368683234,1751295064833,-490.0,0.00013989,2]
[368683235,1751295064843,-887.66,0.00013989,2]
[368683236,1751295064852,-2300.72,0.00013989,2]
[368683237,1751295064862,-2432.01,0.00013989,2]
[368683238,1751295064872,-1790.06,0.00013989,2]
[368683239,1751295064882,-1355.39,0.00013989,2]
[368683240,1751295064891,-2004.16,0.00013989,2]
[368683241,1751295064904,-151.0,0.00013989,2]
[368683242,1751295064914,-1504.97,0.00013989,2]
[368683243,1751295064923,-1168.4,0.00013989,2]
[368683244,1751295064933,-423.41701106,0.00013989,2]
[368683245,1751295064942,-151.0,0.00013989,2]
[368683246,1751295064952,-851.66,0.00013989,2]
[368683247,1751295064963,-1295.54,0.00013989,2]
[368683248,1751295064973,-936.53,0.00013989,2]
[368683249,1751295064982,-151.0,0.00013989,2]
[368683250,1751295064991,-209.442816,0.00013989,2]
[368683251,1751295065001,-694.074966,0.00013989,2]
[368683252,1751295065073,-755.44,0.00013989,2]
[368683253,1751295065118,-1021.465034,0.00013989,2]
[368683254,1751295065128,-5821.19,0.00013989,2]
[368683255,1751295065138,-490.0,0.00013989,2]
[368683256,1751295065150,-3251.87,0.00013989,2]
[368683257,1751295065159,-151.0,0.00013989,2]
[368683258,1751295065169,-151.0,0.00013989,2]
[368683259,1751295065179,-2317.57,0.00013989,2]
[368683260,1751295065188,-151.0,0.00013989,2]
[368683261,1751295065198,-2275.1,0.00013989,2]
[368683262,1751295065207,-2858.924966,0.00013989,2]
[368683263,1751295065257,-259.575034,0.00013989,2]
[368683264,1751295065266,-2357.9,0.00013989,2]
[368683265,1751295065276,-2298.54,0.00013989,2]
[368683266,1751295065286,-2009.36,0.00013989,2]
[368683267,1751295065295,-257.128313,0.00013989,2]
[368683268,1751295065305,-2358.78,0.00013989,2]
[368683269,1751295065315,-288.18192,0.00013989,2]
[368683270,1751295065324,-1935.78,0.00013989,2]
[368683271,1751295065334,-885.84,0.00013989,2]
[368683272,1751295065343,-2046.61,0.00013989,2]
[368683273,1751295065353,-5302.304733,0.00013989,2]
[368683274,1751295065815,-291.44332637,0.00013899,2]
[368683275,1751295065825,-490.0,0.00013987,2]
[368683276,1751295065835,-625.78,0.00013987,2]
[368683277,1751295065845,-18592.77667363,0.00013989,2]
[368683278,1751295141229,284.29,0.00013051,2]
[368683279,1751295151149,5530.66,0.00013061,2]
[368683282,1751295186507,200.0,0.00013032,7]
[368683288,1751295303696,1007.62648342,0.00013099,2]
[368683289,1751295349106,1000.0,0.00013004,2]
[368683297,1751295539397,509.0,0.00012423,2]
[368683300,1751295569073,1491.0,0.00013,2]
[368683301,1751295579604,2446.15,0.00012924,2]
[368683306,1751295623092,17902.18193232,0.00027,120]
[368683307,1751295655656,21683.09,0.00012821,2]
[368683308,1751295708301,280.67170652,0.00012634,2]
[368683309,1751295710864,1121.56413925,0.00012634,2]
[368683310,1751295741292,166.76,0.00012852,2]
[368683312,1751295747540,304.15,0.00012852,2]
[368683313,1751295756303,298.2613045,0.00013051,2]
[368683314,1751295814365,550.0,0.00027397,120]
[368683315,1751295838262,525.0,0.00027397,120]
[368683316,1751295864787,150.0,0.00012759,2]